fUSD/lending_fUSD_20260610
["ID","MTS","AMOUNT","RATE_DAILY","PERIOD"]
[424726910,1781091049000,-9211.34798985,0.00034998,36]
[424726971,1781091050000,-187.78006524,0.00034999,36]
[424726976,1781091050000,-194.72792766,0.00034999,30]
[424726979,1781091050000,-500.0,0.00034999,120]
[424726978,1781091050000,-500.0,0.00034999,120]
[424726980,1781091050000,-500.0,0.00034999,120]
[424726981,1781091050000,-500.0,0.00034999,120]
[424726982,1781091050000,-500.0,0.00034999,7]
[424726977,1781091050000,-151.0,0.00034999,30]
[424726983,1781091050000,-500.0,0.00034999,7]
[424726984,1781091050000,-500.0,0.00034999,7]
[424726990,1781091050000,-344.13873334,0.00035,120]
[424726987,1781091050000,-592.59042773,0.00035,120]
[424726985,1781091050000,-1882.39801581,0.00035,120]
[424726989,1781091050000,-469774.8125643,0.00035,5]
[424726988,1781091050000,-385.31199402,0.00035,120]
[424726973,1781091050000,-151.0,0.00034999,30]
[424726995,1781091050000,-59375.06911344,0.00035,7]
[424726999,1781091050000,-284.95203121,0.00035,30]
[424726991,1781091050000,-100000.0,0.00035,30]
[424726994,1781091050000,-59375.06911344,0.00035,7]
[424726993,1781091050000,-280.27738792,0.00035,2]
[424726992,1781091050000,-389.67454426,0.00035,2]
[424726997,1781091050000,-58820.31798035,0.00035,7]
[424726986,1781091050000,-504.09723725,0.00035,120]
[424726970,1781091050000,-644.79446245,0.00034999,30]
[424726967,1781091050000,-151.0,0.00034999,30]
[424726974,1781091050000,-151.0,0.00034999,30]
[424726996,1781091050000,-58820.31798035,0.00035,7]
[424726946,1781091050000,-187.78006524,0.00034999,36]
[424726948,1781091050000,-151.0,0.00034999,30]
[424726947,1781091050000,-151.0,0.00034999,30]
[424726952,1781091050000,-250.0,0.00034999,30]
[424726950,1781091050000,-8565.75555911,0.00034999,36]
[424726951,1781091050000,-646.65982734,0.00034999,36]
[424726949,1781091050000,-621.78829552,0.00034999,36]
[424726953,1781091050000,-151.0,0.00034999,36]
[424726961,1781091050000,-151.0,0.00034999,36]
[424726954,1781091050000,-200.0,0.00034999,30]
[424726972,1781091050000,-500.0,0.00034999,30]
[424726959,1781091050000,-500.0,0.00034999,30]
[424726955,1781091050000,-160.0,0.00034999,36]
[424726956,1781091050000,-160.00074875,0.00034999,36]
[424726960,1781091050000,-152.0,0.00034999,30]
[424726963,1781091050000,-151.0,0.00034999,36]
[424726958,1781091050000,-288.22903549,0.00034999,36]
[424726965,1781091050000,-8882.6885148,0.00034999,30]
[424726975,1781091050000,-151.0,0.00034999,36]
[424726966,1781091050000,-670.58624095,0.00034999,30]
[424726964,1781091050000,-194.72792766,0.00034999,30]
[424726968,1781091050000,-160.0,0.00034999,30]
[424726969,1781091050000,-160.00074875,0.00034999,30]
[424726957,1781091050000,-4513.56123719,0.00034999,30]
[424726962,1781091050000,-500.0,0.00034999,36]
[424726998,1781091050000,-300.0,0.00035,10]
[424727001,1781091050000,-319.86591686,0.00035,120]
[424727033,1781091050000,-572.79,0.00035112,2]
[424727031,1781091050000,-573.19,0.00035112,2]
[424727030,1781091050000,-573.19,0.00035112,2]
[424727032,1781091050000,-185.08,0.00035112,2]
[424727034,1781091050000,-185.08,0.00035112,2]
[424727035,1781091050000,-573.19,0.00035112,2]
[424727037,1781091050000,-573.19,0.00035112,2]
[424727036,1781091050000,-185.09,0.00035112,2]
[424727046,1781091050000,-573.1,0.00035112,2]
[424727047,1781091050000,-573.23,0.00035112,2]
[424727042,1781091050000,-573.19,0.00035112,2]
[424727038,1781091050000,-573.23,0.00035112,2]
[424727045,1781091050000,-185.09,0.00035112,2]
[424727044,1781091050000,-644.04,0.00035112,2]
[424727040,1781091050000,-573.19,0.00035112,2]
[424727041,1781091050000,-573.19,0.00035112,2]
[424727043,1781091050000,-396.12,0.00035112,2]
[424727048,1781091050000,-396.12,0.00035112,2]
[424727049,1781091050000,-575.4,0.00035112,2]
[424727050,1781091050000,-185.09,0.00035112,2]
[424727051,1781091050000,-482.21,0.00035112,2]
[424727052,1781091050000,-573.19,0.00035112,2]
[424727002,1781091050000,-284.95203121,0.00035,10]
[424727024,1781091050000,-2513.38260962,0.000351,120]
[424727026,1781091050000,-342.20113201,0.00035112,120]
[424727039,1781091050000,-573.19,0.00035112,2]
[424727027,1781091050000,-222.43073581,0.00035112,120]
[424727000,1781091050000,-200.0,0.00035,120]
[424727028,1781091050000,-294.89469877,0.00035112,120]
[424727011,1781091050000,-800.0,0.00035,13]
[424727005,1781091050000,-800.0,0.00035,13]
[424727009,1781091050000,-174.26155545,0.00035,13]
[424727003,1781091050000,-800.0,0.00035,13]
[424727010,1781091050000,-400.0,0.00035,120]
[424727006,1781091050000,-800.0,0.00035,13]
[424727004,1781091050000,-800.0,0.00035,13]
[424727007,1781091050000,-800.0,0.00035,13]
[424727013,1781091050000,-800.0,0.00035,13]
[424727022,1781091050000,-150.0,0.00035069,60]
[424727008,1781091050000,-800.0,0.00035,13]
[424727019,1781091050000,-2500.0,0.00035,2]
[424727015,1781091050000,-800.0,0.00035,13]
[424727014,1781091050000,-800.0,0.00035,13]
[424727021,1781091050000,-3708.1422,0.00035033,2]
[424727018,1781091050000,-800.0,0.00035,13]
[424727016,1781091050000,-800.0,0.00035,13]
[424727020,1781091050000,-3153.5952,0.00035033,2]
[424727029,1781091050000,-191.6815542,0.00035112,120]
[424727017,1781091050000,-800.0,0.00035,13]
[424727023,1781091050000,-327.36,0.00035078,14]
[424727012,1781091050000,-800.0,0.00035,13]
[424727025,1781091050000,-573.19,0.00035111,2]
[424727089,1781091051000,-500.0,0.00035298,7]
[424727093,1781091051000,-1107.4497964,0.000353,2]
[424727091,1781091051000,-150.30788331,0.00035299,2]
[424727088,1781091051000,-150.0,0.00035285,2]
[424727090,1781091051000,-10000.0,0.00035299,2]
[424727082,1781091051000,-170.3,0.00035257,120]
[424727084,1781091051000,-3153.5952,0.00035282,2]
[424727087,1781091051000,-150.0,0.00035285,2]
[424727086,1781091051000,-150.0,0.00035285,2]
[424727092,1781091051000,-199.92,0.000353,14]
[424727085,1781091051000,-3708.1422,0.00035282,2]
[424727095,1781091051000,-1524.980926,0.000353,18]
[424727099,1781091051000,-400.0,0.0003537,2]
[424727094,1781091051000,-246.04,0.000353,2]
[424727105,1781091051000,-599.60298507,0.00035396,30]
[424727097,1781091051000,-4505.0,0.00035349,5]
[424727100,1781091051000,-151.0,0.00035386,2]
[424727103,1781091051000,-359.76179104,0.00035396,30]
[424727098,1781091051000,-300.0,0.0003537,2]
[424727104,1781091051000,-154.15483266,0.00035396,30]
[424727101,1781091051000,-2000.0,0.00035386,66]
[424727111,1781091051000,-1000.0,0.00035396,30]
[424727102,1781091051000,-151.0,0.00035396,14]
[424727106,1781091051000,-181.08010149,0.00035396,30]
[424727083,1781091051000,-533.834789,0.00035279,120]
[424727096,1781091051000,-4551.0,0.00035349,5]
[424727080,1781091051000,-249.87,0.00035257,120]
[424727056,1781091051000,-2070.0804,0.00035158,2]
[424727079,1781091051000,-250.114995,0.00035246,120]
[424727053,1781091051000,-185.0,0.00035112,2]
[424727054,1781091051000,-644.04,0.00035112,2]
[424727057,1781091051000,-3153.5952,0.00035158,2]
[424727055,1781091051000,-556.0,0.00035147,10]
[424727058,1781091051000,-3708.1422,0.00035158,2]
[424727060,1781091051000,-1039.26376581,0.00035202,2]
[424727059,1781091051000,-1000.0,0.00035202,2]
[424727062,1781091051000,-155.03797306,0.00035205,30]
[424727061,1781091051000,-155.03797307,0.00035205,30]
[424727069,1781091051000,-294.0,0.00035205,30]
[424727067,1781091051000,-165.0,0.00035205,30]
[424727066,1781091051000,-155.03797306,0.00035205,30]
[424727063,1781091051000,-155.03797306,0.00035205,30]
[424727065,1781091051000,-155.03797306,0.00035205,30]
[424727068,1781091051000,-152.0,0.00035205,30]
[424727064,1781091051000,-155.03797306,0.00035205,30]
[424727070,1781091051000,-324.0,0.00035205,30]
[424727071,1781091051000,-385.0,0.00035205,30]
[424727072,1781091051000,-154.0,0.00035205,30]
[424727073,1781091051000,-157.0,0.00035205,30]
[424727074,1781091051000,-451.0,0.00035205,30]
[424727075,1781091051000,-156.0,0.00035205,30]
[424727077,1781091051000,-165.0,0.00035205,30]
[424727078,1781091051000,-812.762863,0.00035242,60]
[424727076,1781091051000,-206.0,0.00035205,30]
[424727081,1781091051000,-231.07,0.00035257,120]
[424727108,1781091051000,-500.0,0.00035396,30]
[424727116,1781091051000,-200.0,0.00035396,30]
[424727107,1781091051000,-151.0,0.00035396,30]
[424727143,1781091051000,-500.0,0.00035398,7]
[424727153,1781091051000,-500.0,0.00035398,7]
[424727142,1781091051000,-500.0,0.00035398,7]
[424727144,1781091051000,-500.0,0.00035398,7]
[424727146,1781091051000,-500.0,0.00035398,7]
[424727150,1781091051000,-500.0,0.00035398,7]
[424727151,1781091051000,-500.0,0.00035398,7]
[424727145,1781091051000,-500.0,0.00035398,7]
[424727149,1781091051000,-500.0,0.00035398,7]
[424727148,1781091051000,-500.0,0.00035398,7]
[424727147,1781091051000,-500.0,0.00035398,7]
[424727152,1781091051000,-500.0,0.00035398,7]
[424727154,1781091051000,-500.0,0.00035398,7]
[424727165,1781091051000,-500.0,0.00035398,7]
[424727156,1781091051000,-500.0,0.00035398,7]
[424727161,1781091051000,-500.0,0.00035398,7]
[424727155,1781091051000,-500.0,0.00035398,7]
[424727160,1781091051000,-500.0,0.00035398,7]
[424727157,1781091051000,-500.0,0.00035398,7]
[424727159,1781091051000,-500.0,0.00035398,7]
[424727158,1781091051000,-500.0,0.00035398,7]
[424727162,1781091051000,-500.0,0.00035398,7]
[424727163,1781091051000,-500.0,0.00035398,7]
[424727164,1781091051000,-500.0,0.00035398,7]
[424727110,1781091051000,-2509.42855569,0.00035396,30]
[424727141,1781091051000,-500.0,0.00035398,7]
[424727132,1781091051000,-183.79231054,0.00035397,30]
[424727166,1781091051000,-500.0,0.00035398,7]
[424727134,1781091051000,-190.96821533,0.00035397,7]
[424727109,1781091051000,-181.08010149,0.00035396,30]
[424727112,1781091051000,-151.0,0.00035396,30]
[424727113,1781091051000,-151.0,0.00035396,30]
[424727114,1781091051000,-250.0,0.00035396,30]
[424727115,1781091051000,-500.0,0.00035396,30]
[424727117,1781091051000,-4197.22089552,0.00035396,30]
[424727118,1781091051000,-152.0,0.00035396,30]
[424727139,1781091051000,-561.84,0.00035398,120]
[424727119,1781091051000,-181.08010149,0.00035396,30]
[424727120,1781091051000,-8260.13072238,0.00035396,30]
[424727121,1781091051000,-599.60298507,0.00035396,30]
[424727123,1781091051000,-151.0,0.00035396,30]
[424727124,1781091051000,-160.0,0.00035396,30]
[424727122,1781091051000,-623.58710447,0.00035396,30]
[424727126,1781091051000,-181.08010149,0.00035396,30]
[424727130,1781091051000,-181.08010149,0.00035396,30]
[424727125,1781091051000,-160.00074875,0.00035396,30]
[424727136,1781091051000,-287.26688411,0.00035397,7]
[424727138,1781091051000,-500.0,0.00035398,120]
[424727135,1781091051000,-215.44236381,0.00035397,7]
[424727137,1781091051000,-150.00000002,0.00035398,120]
[424727140,1781091051000,-500.0,0.00035398,7]
[424727133,1781091051000,-167.49559169,0.00035397,7]
[424727129,1781091051000,-151.0,0.00035396,30]
[424727128,1781091051000,-151.0,0.00035396,30]
[424727127,1781091051000,-500.0,0.00035396,30]
[424727131,1781091051000,-151.0,0.00035396,30]
[424727203,1781091052000,-187.78006524,0.00035398,7]
[424727207,1781091052000,-153.80113636,0.00035398,7]
[424727208,1781091052000,-194.72792766,0.00035398,7]
[424727204,1781091052000,-773.24136889,0.00035398,7]
[424727195,1781091052000,-209.40437684,0.00035398,7]
[424727201,1781091052000,-217.15233878,0.00035398,7]
[424727202,1781091052000,-153.80113636,0.00035398,7]
[424727199,1781091052000,-745.65223615,0.00035398,7]
[424727194,1781091052000,-719.04747942,0.00035398,7]
[424727200,1781091052000,-644.79446245,0.00035398,7]
[424727205,1781091052000,-668.65185756,0.00035398,7]
[424727222,1781091052000,-721.12765534,0.00035398,7]
[424727210,1781091052000,-801.85129954,0.00035398,7]
[424727209,1781091052000,-151.0,0.00035398,7]
[424727211,1781091052000,-151.0,0.00035398,7]
[424727212,1781091052000,-222.25838182,0.00035398,7]
[424727214,1781091052000,-500.0,0.00035398,7]
[424727213,1781091052000,-693.39197629,0.00035398,7]
[424727218,1781091052000,-218.05361821,0.00035398,7]
[424727217,1781091052000,-152.0,0.00035398,7]
[424727216,1781091052000,-153.80113636,0.00035398,7]
[424727215,1781091052000,-201.93286098,0.00035398,7]
[424727220,1781091052000,-831.51979762,0.00035398,7]
[424727193,1781091052000,-174.61919141,0.00035398,7]
[424727206,1781091052000,-225.18697532,0.00035398,7]
[424727192,1781091052000,-154.15483266,0.00035398,7]
[424727183,1781091052000,-153.80113636,0.00035398,7]
[424727190,1781091052000,-599.60298507,0.00035398,7]
[424727219,1781091052000,-151.0,0.00035398,7]
[424727167,1781091052000,-500.0,0.00035398,7]
[424727168,1781091052000,-500.0,0.00035398,7]
[424727170,1781091052000,-500.0,0.00035398,7]
[424727169,1781091052000,-500.0,0.00035398,7]
[424727173,1781091052000,-500.0,0.00035398,7]
[424727174,1781091052000,-500.0,0.00035398,7]
[424727175,1781091052000,-500.0,0.00035398,7]
[424727172,1781091052000,-500.0,0.00035398,7]
[424727176,1781091052000,-500.0,0.00035398,7]
[424727178,1781091052000,-500.0,0.00035398,7]
[424727177,1781091052000,-500.0,0.00035398,7]
[424727181,1781091052000,-153.80113636,0.00035398,7]
[424727179,1781091052000,-500.0,0.00035398,7]
[424727182,1781091052000,-155.0390625,0.00035398,7]
[424727184,1781091052000,-153.80113636,0.00035398,7]
[424727186,1781091052000,-578.20924308,0.00035398,7]
[424727185,1781091052000,-153.80113636,0.00035398,7]
[424727187,1781091052000,-153.80113636,0.00035398,7]
[424727180,1781091052000,-155.0390625,0.00035398,7]
[424727189,1781091052000,-693.39197629,0.00035398,7]
[424727197,1781091052000,-153.80113636,0.00035398,7]
[424727188,1781091052000,-154.15483266,0.00035398,7]
[424727196,1781091052000,-621.78829552,0.00035398,7]
[424727198,1781091052000,-181.08010149,0.00035398,7]
[424727191,1781091052000,-153.80113636,0.00035398,7]
[424727221,1781091052000,-209.40437684,0.00035398,7]
[424727171,1781091052000,-500.0,0.00035398,7]
[424727225,1781091052000,-500.0,0.00035398,7]
[424727255,1781091052000,-151.0,0.00035398,7]
[424727252,1781091052000,-151.0,0.00035398,7]
[424727254,1781091052000,-152.0,0.00035398,7]
[424727256,1781091052000,-225.18697532,0.00035398,7]
[424727259,1781091052000,-500.0,0.00035398,7]
[424727270,1781091052000,-233.5188934,0.00035398,7]
[424727261,1781091052000,-151.0,0.00035398,7]
[424727260,1781091052000,-151.0,0.00035398,7]
[424727264,1781091052000,-151.0,0.00035398,7]
[424727262,1781091052000,-927.27566594,0.00035398,7]
[424727263,1781091052000,-151.0,0.00035398,7]
[424727266,1781091052000,-151.0,0.00035398,7]
[424727269,1781091052000,-233.5188934,0.00035398,7]
[424727268,1781091052000,-833.92535152,0.00035398,7]
[424727265,1781091052000,-151.0,0.00035398,7]
[424727271,1781091052000,-500.0,0.00035398,7]
[424727273,1781091052000,-934.09979722,0.00035398,7]
[424727275,1781091052000,-151.0,0.00035398,7]
[424727277,1781091052000,-151.0,0.00035398,7]
[424727272,1781091052000,-151.0,0.00035398,7]
[424727274,1781091052000,-151.0,0.00035398,7]
[424727278,1781091052000,-151.0,0.00035398,7]
[424727276,1781091052000,-151.0,0.00035398,7]
[424727279,1781091052000,-242.15909246,0.00035398,7]
[424727227,1781091052000,-153.8011364,0.00035398,7]
[424727257,1781091052000,-804.17102365,0.00035398,7]
[424727250,1781091052000,-894.19061325,0.00035398,7]
[424727267,1781091052000,-152.0,0.00035398,7]
[424727251,1781091052000,-151.0,0.00035398,7]
[424727253,1781091052000,-151.0,0.00035398,7]
[424727229,1781091052000,-152.0,0.00035398,7]
[424727232,1781091052000,-151.0,0.00035398,7]
[424727234,1781091052000,-151.0,0.00035398,7]
[424727226,1781091052000,-209.40437684,0.00035398,7]
[424727228,1781091052000,-151.0,0.00035398,7]
[424727233,1781091052000,-747.80937859,0.00035398,7]
[424727230,1781091052000,-151.0,0.00035398,7]
[424727231,1781091052000,-151.0,0.00035398,7]
[424727236,1781091052000,-500.0,0.00035398,7]
[424727241,1781091052000,-151.0,0.00035398,7]
[424727237,1781091052000,-862.28603014,0.00035398,7]
[424727223,1781091052000,-250.0,0.00035398,7]
[424727224,1781091052000,-719.04747942,0.00035398,7]
[424727249,1781091052000,-151.0,0.00035398,7]
[424727246,1781091052000,-217.15233878,0.00035398,7]
[424727247,1781091052000,-151.0,0.00035398,7]
[424727258,1781091052000,-225.18697532,0.00035398,7]
[424727248,1781091052000,-500.0,0.00035398,7]
[424727244,1781091052000,-217.15233878,0.00035398,7]
[424727240,1781091052000,-152.0,0.00035398,7]
[424727245,1781091052000,-775.4783256,0.00035398,7]
[424727238,1781091052000,-151.0,0.00035398,7]
[424727239,1781091052000,-151.16920885,0.00035398,7]
[424727235,1781091052000,-297.92747654,0.00035398,7]
[424727242,1781091052000,-151.0,0.00035398,7]
[424727243,1781091052000,-151.0,0.00035398,7]
[424727301,1781091053000,-260.4103811,0.00035398,7]
[424727297,1781091053000,-151.0,0.00035398,7]
[424727299,1781091053000,-151.0,0.00035398,7]
[424727300,1781091053000,-929.95823778,0.00035398,7]
[424727298,1781091053000,-151.0,0.00035398,7]
[424727309,1781091053000,-151.0,0.00035398,7]
[424727302,1781091053000,-500.0,0.00035398,7]
[424727305,1781091053000,-151.0,0.00035398,7]
[424727315,1781091053000,-273.35166149,0.00035398,7]
[424727304,1781091053000,-152.0,0.00035398,7]
[424727294,1781091053000,-500.0,0.00035398,7]
[424727303,1781091053000,-260.4103811,0.00035398,7]
[424727306,1781091053000,-151.0,0.00035398,7]
[424727282,1781091053000,-242.15909246,0.00035398,7]
[424727295,1781091053000,-151.0,0.00035398,7]
[424727290,1781091053000,-151.0,0.00035398,7]
[424727289,1781091053000,-896.77747134,0.00035398,7]
[424727287,1781091053000,-151.0,0.00035398,7]
[424727285,1781091053000,-151.0,0.00035398,7]
[424727286,1781091053000,-151.0,0.00035398,7]
[424727291,1781091053000,-251.11897888,0.00035398,7]
[424727288,1781091053000,-151.0,0.00035398,7]
[424727284,1781091053000,-151.0,0.00035398,7]
[424727281,1781091053000,-152.0,0.00035398,7]
[424727283,1781091053000,-500.0,0.00035398,7]
[424727292,1781091053000,-152.0,0.00035398,7]
[424727280,1781091053000,-864.78058953,0.00035398,7]
[424727313,1781091053000,-270.0455652,0.00035398,7]
[424727296,1781091053000,-151.0,0.00035398,7]
[424727308,1781091053000,-151.0,0.00035398,7]
[424727293,1781091053000,-251.11897888,0.00035398,7]
[424727307,1781091053000,-151.0,0.00035398,7]
[424727312,1781091053000,-500.0,0.00035398,7]
[424727339,1781091053000,-10413.96117987,0.00035399,31]
[424727342,1781091053000,-363692.83012172,0.00035399,7]
[424727340,1781091053000,-25209.4589523,0.00035399,7]
[424727341,1781091053000,-3124.97495216,0.00035399,2]
[424727337,1781091053000,-152.0,0.00035398,7]
[424727335,1781091053000,-151.0,0.00035398,7]
[424727336,1781091053000,-151.0,0.00035398,7]
[424727332,1781091053000,-152.0,0.00035398,7]
[424727334,1781091053000,-151.0,0.00035398,7]
[424727331,1781091053000,-151.0,0.00035398,7]
[424727329,1781091053000,-413.62587612,0.00035398,7]
[424727333,1781091053000,-151.0,0.00035398,7]
[424727330,1781091053000,-151.0,0.00035398,7]
[424727327,1781091053000,-151.0,0.00035398,7]
[424727338,1781091053000,-151.0,0.00035398,7]
[424727321,1781091053000,-280.03725111,0.00035398,7]
[424727328,1781091053000,-155.87687707,0.00035398,7]
[424727310,1781091053000,-977.11790558,0.00035398,7]
[424727311,1781091053000,-151.0,0.00035398,7]
[424727317,1781091053000,-151.0,0.00035398,7]
[424727322,1781091053000,-151.0,0.00035398,7]
[424727314,1781091053000,-270.0455652,0.00035398,7]
[424727318,1781091053000,-151.0,0.00035398,7]
[424727325,1781091053000,-250.12665989,0.00035398,7]
[424727319,1781091053000,-500.0,0.00035398,7]
[424727316,1781091053000,-151.0,0.00035398,7]
[424727326,1781091053000,-151.0,0.00035398,7]
[424727324,1781091053000,-151.0,0.00035398,7]
[424727323,1781091053000,-152.0,0.00035398,7]
[424727320,1781091053000,-280.03725111,0.00035398,7]
[424727344,1781091054000,-584.50560362,0.00035399,7]
[424727343,1781091054000,-8442.08,0.00035399,7]
[424727348,1781091055000,-171.61426624,0.00029999,2]
[424727346,1781091055000,-279.0,0.00029999,2]
[424727345,1781091055000,-221.0,0.00017315,2]
[424727350,1781091055000,-886.29182715,0.00035,7]
[424727351,1781091055000,-246.70817285,0.00035,7]
[424727349,1781091055000,-756.10426624,0.00029999,2]
[424727352,1781091055000,-545.82422459,0.00035399,7]
[424727353,1781091055000,-7923.54916944,0.00035399,7]
[424727347,1781091055000,-305.49,0.00029999,2]
[424727354,1781091056000,-151.0,0.00013969,2]
[424727355,1781091056000,-151.0,0.00018664,2]
[424727357,1781091056000,-166.66,0.00024203,30]
[424727359,1781091056000,-166.66,0.00025222,30]
[424727361,1781091056000,-166.66,0.00026241,30]
[424727358,1781091056000,-166.66,0.00024712,30]
[424727356,1781091056000,-151.0,0.00018664,2]
[424727362,1781091056000,-166.66,0.0002675,30]
[424727363,1781091056000,-350.0,0.00027397,9]
[424727360,1781091056000,-166.66,0.00025731,30]
[424727368,1781091056000,-350.0,0.00031887,21]
[424727365,1781091056000,-529.63,0.0002863,30]
[424727367,1781091056000,-953.0,0.00029999,10]
[424727366,1781091056000,-350.0,0.00029791,14]
[424727369,1781091056000,-315251.42023718,0.00035399,7]
[424727370,1781091056000,-295.63,0.00035399,7]
[424727371,1781091056000,-414.1,0.00028797,7]
[424727373,1781091056000,-2800.38909535,0.00035399,7]
[424727372,1781091056000,-529.63,0.00028797,7]
[424727374,1781091056000,-1507.5546,0.00035399,7]
[424727364,1781091056000,-414.1,0.0002863,30]
[424727376,1781091364000,150.0,0.00030137,120]
[424727377,1781091432000,168.0,0.0003,120]
[424727393,1781092231000,-438.4,0.00012638,2]
[424727392,1781092231000,-830.02330158,0.00012638,2]
[424727423,1781092232000,-226.0,0.00012838,2]
[424727419,1781092232000,-221.0,0.00012838,2]
[424727425,1781092232000,-224.0,0.00012838,2]
[424727424,1781092232000,-221.0,0.00012838,2]
[424727429,1781092232000,-221.0,0.00012838,2]
[424727420,1781092232000,-221.0,0.00012838,2]
[424727426,1781092232000,-227.0,0.00012838,2]
[424727428,1781092232000,-225.0,0.00012838,2]
[424727438,1781092232000,-229.0,0.00012838,2]
[424727437,1781092232000,-229.0,0.00012838,2]
[424727434,1781092232000,-229.0,0.00012838,2]
[424727439,1781092232000,-228.0,0.00012938,2]
[424727433,1781092232000,-228.0,0.00012838,2]
[424727435,1781092232000,-221.0,0.00012838,2]
[424727431,1781092232000,-221.0,0.00012838,2]
[424727436,1781092232000,-226.0,0.00012838,2]
[424727432,1781092232000,-226.0,0.00012838,2]
[424727422,1781092232000,-226.0,0.00012838,2]
[424727441,1781092232000,-226.0,0.00012938,2]
[424727440,1781092232000,-226.0,0.00012938,2]
[424727450,1781092232000,-228.0,0.00012938,2]
[424727448,1781092232000,-221.0,0.00012938,2]
[424727444,1781092232000,-229.0,0.00012938,2]
[424727430,1781092232000,-225.0,0.00012838,2]
[424727421,1781092232000,-222.0,0.00012838,2]
[424727410,1781092232000,-2500.0,0.00012776,2]
[424727418,1781092232000,-229.0,0.00012838,2]
[424727442,1781092232000,-227.0,0.00012938,2]
[424727394,1781092232000,-231.85027246,0.00012638,2]
[424727395,1781092232000,-1428.28671453,0.00012688,2]
[424727399,1781092232000,-224.0,0.00012738,2]
[424727396,1781092232000,-1071.71328547,0.00012688,2]
[424727402,1781092232000,-228.0,0.00012738,2]
[424727397,1781092232000,-162.83,0.00012738,2]
[424727401,1781092232000,-224.0,0.00012738,2]
[424727400,1781092232000,-228.0,0.00012738,2]
[424727398,1781092232000,-226.0,0.00012738,2]
[424727403,1781092232000,-227.0,0.00012738,2]
[424727405,1781092232000,-228.0,0.00012738,2]
[424727404,1781092232000,-229.0,0.00012738,2]
[424727406,1781092232000,-225.0,0.00012738,2]
[424727411,1781092232000,-2500.0,0.00012776,2]
[424727408,1781092232000,-223.0,0.00012738,2]
[424727407,1781092232000,-228.0,0.00012738,2]
[424727412,1781092232000,-2500.0,0.00012776,2]
[424727409,1781092232000,-221.0,0.00012738,2]
[424727414,1781092232000,-222.0,0.00012838,2]
[424727413,1781092232000,-221.0,0.00012838,2]
[424727415,1781092232000,-229.0,0.00012838,2]
[424727417,1781092232000,-223.0,0.00012838,2]
[424727416,1781092232000,-222.0,0.00012838,2]
[424727443,1781092232000,-223.0,0.00012938,2]
[424727427,1781092232000,-228.0,0.00012838,2]
[424727447,1781092232000,-227.0,0.00012938,2]
[424727475,1781092232000,-223.0,0.00013038,2]
[424727478,1781092232000,-223.0,0.00013038,2]
[424727480,1781092232000,-222.0,0.00013632,2]
[424727479,1781092232000,-500.0,0.00013047,2]
[424727481,1781092232000,-221.0,0.00013632,2]
[424727483,1781092232000,-227.0,0.00013632,2]
[424727477,1781092232000,-229.0,0.00013038,2]
[424727482,1781092232000,-224.0,0.00013632,2]
[424727485,1781092232000,-227.0,0.00013632,2]
[424727486,1781092232000,-229.0,0.00013632,2]
[424727488,1781092232000,-228.0,0.00013632,2]
[424727476,1781092232000,-228.0,0.00013038,2]